fUSD/lending_fUSD_20240921
["ID","MTS","AMOUNT","RATE_DAILY","PERIOD"]
[338725740,1726899049595,-433.31,0.00012998,2]
[338725742,1726899049604,-500.0,0.00012998,2]
[338725744,1726899049614,-500.0,0.00012998,2]
[338725746,1726899049623,-253.7,0.00012998,2]
[338725748,1726899049633,-600.67,0.00012998,2]
[338725750,1726899049643,-500.0,0.00012998,2]
[338725752,1726899049652,-500.0,0.00012998,2]
[338725754,1726899049661,-500.0,0.00012998,2]
[338725756,1726899049671,-500.0,0.00012998,2]
[338725758,1726899049680,-500.0,0.00012998,2]
[338725760,1726899049690,-500.0,0.00012998,2]
[338725762,1726899049700,-636.43,0.00012998,2]
[338725764,1726899049710,-516.61,0.00012998,2]
[338725766,1726899049719,-296.72,0.00012998,2]
[338725768,1726899049728,-500.0,0.00012998,2]
[338725770,1726899049738,-500.0,0.00012998,2]
[338725772,1726899049747,-500.0,0.00012998,2]
[338725773,1726899049757,-500.0,0.00012998,2]
[338725775,1726899049766,-500.0,0.00012998,2]
[338725777,1726899049776,-458.62,0.00012998,2]
[338725779,1726899049786,-500.0,0.00012998,2]
[338725781,1726899049795,-227.04,0.00012998,2]
[338725783,1726899049805,-500.0,0.00012998,2]
[338725785,1726899049815,-500.0,0.00012998,2]
[338725787,1726899049825,-500.0,0.00012998,2]
[338725789,1726899049834,-500.0,0.00012998,2]
[338725791,1726899049844,-500.0,0.00012998,2]
[338725793,1726899049854,-500.0,0.00012998,2]
[338725795,1726899049863,-500.0,0.00012998,2]
[338725797,1726899049873,-500.0,0.00012998,2]
[338725799,1726899049883,-493.56,0.00012998,2]
[338725802,1726899049894,-500.0,0.00012998,2]
[338725803,1726899049904,-336.45,0.00012998,2]
[338725805,1726899049915,-387.09,0.00012998,2]
[338725807,1726899049925,-500.0,0.00012998,2]
[338725809,1726899049935,-500.0,0.00012998,2]
[338725810,1726899049944,-500.0,0.00012998,2]
[338725811,1726899049954,-500.0,0.00012998,2]
[338725812,1726899049963,-500.0,0.00012998,2]
[338725813,1726899049973,-271.33,0.00012998,2]
[338725814,1726899049983,-196.0,0.00012998,2]
[338725815,1726899049993,-259.34,0.00012998,2]
[338725816,1726899050003,-500.0,0.00012998,2]
[338725817,1726899050012,-500.0,0.00012998,2]
[338725818,1726899050022,-500.0,0.00012998,2]
[338725819,1726899050031,-479.56,0.00012998,2]
[338725820,1726899050040,-500.0,0.00012998,2]
[338725821,1726899050050,-341.8,0.00012998,2]
[338725822,1726899050060,-598.32,0.00012998,2]
[338725824,1726899050069,-187.76,0.00012998,2]
[338725825,1726899050078,-500.0,0.00012998,2]
[338725827,1726899050089,-296.44,0.00012998,2]
[338725829,1726899050099,-500.0,0.00012998,2]
[338725832,1726899050110,-500.0,0.00012998,2]
[338725833,1726899050120,-500.0,0.00012998,2]
[338725835,1726899050130,-368.75,0.00012998,2]
[338725837,1726899050139,-384.76,0.00012998,2]
[338725839,1726899050148,-500.0,0.00012998,2]
[338725841,1726899050158,-369.47,0.00012998,2]
[338725843,1726899050167,-212.59,0.00012998,2]
[338725845,1726899050176,-500.0,0.00012998,2]
[338725847,1726899050185,-628.96,0.00012998,2]
[338725849,1726899050196,-500.0,0.00012998,2]
[338725851,1726899050205,-449.61,0.00012998,2]
[338725853,1726899050215,-300.0,0.00012998,2]
[338725855,1726899050224,-300.0,0.00012998,2]
[338725857,1726899050233,-300.0,0.00012998,2]
[338725859,1726899050242,-156.73,0.00012998,2]
[338725861,1726899050251,-276.93,0.00012998,2]
[338725863,1726899050260,-190.2,0.00012998,2]
[338725865,1726899050269,-397.76,0.00012998,2]
[338725867,1726899050278,-500.0,0.00012998,2]
[338725869,1726899050288,-600.08,0.00012998,2]
[338725871,1726899050297,-500.0,0.00012998,2]
[338725873,1726899050307,-203.06,0.00012998,2]
[338725875,1726899050316,-405.66,0.00012998,2]
[338725877,1726899050325,-358.64,0.00012998,2]
[338725878,1726899050334,-500.0,0.00012998,2]
[338725880,1726899050343,-241.16,0.00012998,2]
[338725882,1726899050353,-500.0,0.00012998,2]
[338725884,1726899050362,-342.26,0.00012998,2]
[338725886,1726899050373,-500.0,0.00012998,2]
[338725888,1726899050383,-375.97,0.00012998,2]
[338725890,1726899050393,-500.0,0.00012998,2]
[338725892,1726899050402,-150.78,0.00012998,2]
[338725894,1726899050413,-582.65,0.00012998,2]
[338725896,1726899050424,-633.31,0.00012998,2]
[338725899,1726899050436,-451.15,0.00012998,2]
[338725901,1726899050448,-348.24,0.00012998,2]
[338725903,1726899050457,-186.94,0.00012998,2]
[338725905,1726899050467,-500.0,0.00012998,2]
[338725907,1726899050477,-500.0,0.00012998,2]
[338725909,1726899050488,-280.81,0.00012998,2]
[338725912,1726899050499,-599.08,0.00012998,2]
[338725914,1726899050510,-262.3,0.00012998,2]
[338725916,1726899050521,-543.45,0.00012998,2]
[338725918,1726899050530,-167.08,0.00012998,2]
[338725920,1726899050539,-500.0,0.00012998,2]
[338725922,1726899050548,-500.0,0.00012998,2]
[338725924,1726899050559,-500.0,0.00012998,2]
[338725926,1726899050569,-500.0,0.00012998,2]
[338725928,1726899050581,-500.0,0.00012998,2]
[338725930,1726899050593,-553.93,0.00012998,2]
[338725932,1726899050603,-363.26,0.00012998,2]
[338725934,1726899050614,-500.0,0.00012998,2]
[338725936,1726899050623,-169.82,0.00012998,2]
[338725938,1726899050632,-804.62,0.00012998,2]
[338725940,1726899050641,-804.62,0.00012998,2]
[338725943,1726899050657,-804.62,0.00012998,2]
[338725945,1726899050666,-804.62,0.00012998,2]
[338725947,1726899050679,-223.42,0.00012998,2]
[338725949,1726899050689,-500.0,0.00012998,2]
[338725951,1726899050698,-547.04,0.00012998,2]
[338725954,1726899050710,-500.0,0.00012998,2]
[338725956,1726899050721,-457.87,0.00012998,2]
[338725958,1726899050734,-500.0,0.00012998,2]
[338725960,1726899050742,-562.59,0.00012998,2]
[338725962,1726899050752,-500.0,0.00012998,2]
[338725964,1726899050761,-500.0,0.00012998,2]
[338725965,1726899050770,-450.74,0.00012998,2]
[338725968,1726899050780,-279.95,0.00012998,2]
[338725970,1726899050790,-608.27,0.00012998,2]
[338725972,1726899050800,-500.0,0.00012998,2]
[338725974,1726899050809,-466.99,0.00012998,2]
[338725976,1726899050818,-500.0,0.00012998,2]
[338725978,1726899050829,-500.0,0.00012998,2]
[338725980,1726899050838,-500.0,0.00012998,2]
[338725982,1726899050846,-500.0,0.00012998,2]
[338725984,1726899050855,-500.0,0.00012998,2]
[338725985,1726899050871,-450.03,0.00012998,2]
[338725988,1726899050882,-150.0,0.00012998,2]
[338725990,1726899050891,-150.0,0.00012998,2]
[338725992,1726899050900,-150.0,0.00012998,2]
[338725994,1726899050909,-150.0,0.00012998,2]
[338725996,1726899050919,-500.0,0.00012998,2]
[338725997,1726899050928,-340.53,0.00012998,2]
[338726000,1726899050938,-500.0,0.00012998,2]
[338726002,1726899050947,-364.93,0.00012998,2]
[338726004,1726899050956,-500.0,0.00012998,2]
[338726006,1726899050966,-403.16,0.00012998,2]
[338726008,1726899050975,-500.0,0.00012998,2]
[338726010,1726899050984,-500.0,0.00012998,2]
[338726012,1726899050994,-500.0,0.00012998,2]
[338726014,1726899051003,-1100.0,0.00013,2]
[338726016,1726899051012,-476.07,0.00013,2]
[338726018,1726899051022,-48192.0,0.00013,14]
[338726020,1726899051031,-1010.12,0.00013,2]
[338726022,1726899051040,-2230.79319061,0.00013001,2]
[338726024,1726899051050,-159.71256511,0.00013177,2]
[338726026,1726899051059,-196.48,0.00013211,2]
[338726028,1726899051068,-2230.79319061,0.00013212,2]
[338726030,1726899051078,-888.0,0.00013265,2]
[338726032,1726899051088,-2230.79319061,0.00013424,2]
[338726034,1726899051098,-159.71256511,0.0001348,2]
[338726036,1726899051112,-600.0,0.000135,4]
[338726038,1726899051121,-186.36,0.00013542,2]
[338726040,1726899051131,-1913.0,0.00013571,2]
[338726042,1726899051142,-1300.0,0.000136,4]
[338726044,1726899051151,-2230.79319061,0.00013636,2]
[338726046,1726899051160,-500.0,0.00013698,2]
[338726048,1726899051169,-500.0,0.00013698,2]
[338726050,1726899051178,-458.61997386,0.00013698,2]
[338726052,1726899051188,-500.0,0.00013698,2]
[338726054,1726899051197,-800.0,0.00013698,2]
[338726056,1726899051206,-190.71978019,0.00013698,2]
[338726058,1726899051215,-507.85507354,0.00013698,2]
[338726060,1726899051224,-165.04,0.00013699,2]
[338726062,1726899051233,-150.0,0.00013699,2]
[338726064,1726899051243,-2751.0,0.00013699,2]
[338726066,1726899051252,-200.0,0.00013699,2]
[338726068,1726899051262,-2000.0,0.000137,5]
[338726070,1726899051271,-297.56,0.00013709,2]
[338726072,1726899051281,-201.195,0.00013749,2]
[338726074,1726899051292,-150.0,0.00013749,2]
[338726076,1726899051302,-159.71256511,0.00013784,2]
[338726078,1726899051313,-500.0,0.00013799,2]
[338726080,1726899051322,-500.0,0.00013799,2]
[338726082,1726899051331,-500.0,0.00013799,2]
[338726084,1726899051341,-500.0,0.00013799,2]
[338726086,1726899051350,-500.0,0.00013799,2]
[338726088,1726899051361,-500.0,0.00013799,2]
[338726090,1726899051370,-500.0,0.00013799,2]
[338726092,1726899051379,-500.0,0.00013799,2]
[338726094,1726899051388,-500.0,0.00013799,2]
[338726096,1726899051397,-383.8,0.00013799,2]
[338726098,1726899051408,-500.0,0.00013799,2]
[338726100,1726899051416,-443.2,0.00013799,2]
[338726102,1726899051427,-171.17,0.00013799,2]
[338726104,1726899051436,-500.0,0.00013799,2]
[338726106,1726899051447,-500.0,0.00013799,2]
[338726108,1726899051456,-173.6,0.00013799,2]
[338726111,1726899051466,-500.0,0.00013799,2]
[338726113,1726899051475,-500.0,0.00013799,2]
[338726115,1726899051485,-500.0,0.00013799,2]
[338726117,1726899051495,-268.03,0.00013799,2]
[338726119,1726899051505,-500.0,0.00013799,2]
[338726121,1726899051515,-500.0,0.00013799,2]
[338726123,1726899051525,-300.0,0.00013799,2]
[338726125,1726899051534,-300.0,0.00013799,2]
[338726127,1726899051544,-500.0,0.00013799,2]
[338726129,1726899051554,-500.0,0.00013799,2]
[338726131,1726899051564,-804.62,0.00013799,2]
[338726133,1726899051574,-804.62,0.00013799,2]
[338726135,1726899051583,-500.0,0.00013799,2]
[338726137,1726899051592,-372.47,0.00013799,2]
[338726139,1726899051601,-150.0,0.00013799,2]
[338726141,1726899051611,-150.0,0.00013799,2]
[338726143,1726899051620,-151.0,0.000138,2]
[338726145,1726899051629,-151.0,0.000138,2]
[338726147,1726899051639,-2700.0,0.000138,5]
[338726149,1726899051649,-179502.12333,0.000138,2]
[338726151,1726899051658,-434.526,0.00013846,2]
[338726153,1726899051667,-2230.79319061,0.00013847,2]
[338726155,1726899051676,-13807.8556408,0.00013885,2]
[338726157,1726899051685,-13807.8556408,0.0001389,2]
[338726159,1726899051694,-404.29,0.00013895,2]
[338726161,1726899051704,-518.69,0.00013895,2]
[338726163,1726899051713,-500.0,0.00013895,2]
[338726165,1726899051721,-500.0,0.00013895,2]
[338726167,1726899051731,-162.17,0.00013895,2]
[338726169,1726899051740,-500.0,0.00013895,2]
[338726171,1726899051750,-579.02,0.00013895,2]
[338726173,1726899051759,-500.0,0.00013895,2]
[338726174,1726899051769,-500.0,0.00013895,2]
[338726175,1726899051778,-500.0,0.00013895,2]
[338726176,1726899051788,-500.0,0.00013895,2]
[338726177,1726899051797,-152.4,0.00013895,2]
[338726178,1726899051806,-407.19,0.00013895,2]
[338726179,1726899051815,-410.9,0.00013895,2]
[338726180,1726899051825,-607.52,0.00013895,2]
[338726181,1726899051834,-500.0,0.00013895,2]
[338726182,1726899051843,-201.58,0.00013895,2]
[338726183,1726899051852,-385.44,0.00013895,2]
[338726184,1726899051861,-1000.0,0.00013895,2]
[338726185,1726899051870,-500.0,0.00013895,2]
[338726186,1726899051879,-500.0,0.00013895,2]
[338726187,1726899051888,-569.58,0.00013895,2]
[338726188,1726899051897,-156.38,0.00013895,2]
[338726189,1726899051906,-152.7,0.00013895,2]
[338726190,1726899051915,-500.0,0.00013895,2]
[338726191,1726899051924,-2528.29,0.00013895,2]
[338726192,1726899051934,-458.11,0.00013899,2]
[338726193,1726899051943,-500.0,0.00013899,2]
[338726194,1726899051952,-446.74,0.00013899,2]
[338726195,1726899051962,-500.0,0.00013899,2]
[338726196,1726899051972,-500.0,0.00013899,2]
[338726197,1726899051981,-500.0,0.00013899,2]
[338726198,1726899051991,-311.34,0.00013899,2]
[338726199,1726899052000,-500.0,0.00013899,2]
[338726200,1726899052009,-500.0,0.00013899,2]
[338726201,1726899052019,-500.0,0.00013899,2]
[338726202,1726899052028,-500.0,0.00013899,2]
[338726203,1726899052037,-500.0,0.00013899,2]
[338726204,1726899052046,-500.0,0.00013899,2]
[338726205,1726899052055,-155.63,0.00013899,2]
[338726206,1726899052064,-500.0,0.00013899,2]
[338726207,1726899052073,-252.48,0.00013899,2]
[338726208,1726899052083,-804.62,0.00013899,2]
[338726209,1726899052093,-804.62,0.00013899,2]
[338726210,1726899052103,-150.0,0.00013899,2]
[338726211,1726899052117,-150.0,0.00013899,2]
[338726212,1726899052127,-151.0,0.000139,2]
[338726213,1726899052136,-151.0,0.000139,2]
[338726214,1726899052146,-3400.0,0.000139,5]
[338726215,1726899052275,-227.0,0.000139,2]
[338726216,1726899052294,-70807.9214467,0.000139,2]
[338726217,1726899052304,-726.0,0.000139,2]
[338726218,1726899052314,-2995.0716674,0.00014,2]
[338726219,1726899052323,-2230.79319061,0.00014059,2]
[338726220,1726899052333,-150.0,0.00014059,2]
[338726221,1726899052343,-159.71256511,0.00014087,2]
[338726222,1726899052352,-13807.8556408,0.0001409,2]
[338726223,1726899052362,-23602.6404822,0.0001409,2]
[338726224,1726899052371,-526.77,0.00014099,2]
[338726225,1726899052381,-500.0,0.00014099,2]
[338726226,1726899052391,-266.98,0.00014099,2]
[338726227,1726899052400,-394.7,0.00014099,2]
[338726228,1726899052410,-561.27,0.00014099,2]
[338726229,1726899052420,-509.32,0.00014099,2]
[338726230,1726899052430,-500.0,0.00014099,2]
[338726231,1726899052440,-500.0,0.00014099,2]
[338726232,1726899052450,-454.87,0.00014099,2]
[338726233,1726899052460,-252.38,0.00014099,2]
[338726234,1726899052470,-500.0,0.00014099,2]
[338726235,1726899052480,-156.57,0.00014099,2]
[338726236,1726899052489,-548.11,0.00014099,2]
[338726237,1726899052499,-500.0,0.00014099,2]
[338726238,1726899052509,-406.53,0.00014099,2]
[338726239,1726899052519,-168.15,0.00014099,2]
[338726240,1726899052529,-500.0,0.00014099,2]
[338726241,1726899052538,-233.78,0.00014099,2]
[338726242,1726899052548,-288.03,0.00014099,2]
[338726243,1726899052558,-419.01,0.00014099,2]
[338726244,1726899052567,-500.0,0.00014099,2]
[338726245,1726899052577,-493.07,0.00014099,2]
[338726246,1726899052586,-414.76,0.00014099,2]
[338726247,1726899052596,-542.59,0.00014099,2]
[338726249,1726899052606,-500.0,0.00014099,2]
[338726251,1726899052616,-500.0,0.00014099,2]
[338726253,1726899052625,-436.97,0.00014099,2]
[338726255,1726899052635,-359.28,0.00014099,2]
[338726257,1726899052644,-500.0,0.00014099,2]
[338726259,1726899052654,-257.07,0.00014099,2]
[338726261,1726899052663,-160.57,0.00014099,2]
[338726263,1726899052673,-242.67,0.00014099,2]
[338726265,1726899052683,-150.32,0.00014099,2]
[338726267,1726899052692,-614.69,0.00014099,2]
[338726269,1726899052702,-500.0,0.00014099,2]
[338726271,1726899052712,-214.66,0.00014099,2]
[338726273,1726899052721,-572.04,0.00014099,2]
[338726275,1726899052731,-32078.4358825,0.000141,2]
[338726277,1726899052740,-13807.8556408,0.00014168,2]
[338726279,1726899052750,-1000.0,0.00014178,2]
[338726280,1726899052760,-700.0,0.00014178,2]
[338726281,1726899052769,-151.34010265,0.00014189,2]
[338726282,1726899052780,-150.43465659,0.00014202,2]
[338726283,1726899052789,-421.94785814,0.0001422,2]
[338726284,1726899052799,-2230.79319061,0.00014271,2]
[338726285,1726899052808,-13807.8556408,0.00014289,2]
[338726287,1726899052818,-23602.6404822,0.00014289,2]
[338726289,1726899052828,-254.24,0.00014289,2]
[338726291,1726899052837,-500.0,0.00014289,2]
[338726293,1726899052847,-500.0,0.00014289,2]
[338726294,1726899052857,-320.3,0.00014289,2]
[338726296,1726899052867,-500.0,0.00014289,2]
[338726298,1726899052877,-500.0,0.00014289,2]
[338726300,1726899052887,-255.6,0.00014289,2]
[338726302,1726899052896,-500.0,0.00014289,2]
[338726304,1726899052906,-500.0,0.00014289,2]
[338726306,1726899052915,-263.48,0.00014289,2]
[338726308,1726899052925,-579.02,0.00014289,2]
[338726309,1726899052935,-579.02,0.00014289,2]
[338726311,1726899052945,-246.68,0.00014289,2]
[338726313,1726899052955,-500.0,0.00014289,2]
[338726315,1726899052966,-383.77,0.00014289,2]
[338726317,1726899052976,-500.0,0.00014289,2]
[338726319,1726899052985,-251.57,0.00014289,2]
[338726321,1726899052995,-300.87,0.00014289,2]
[338726324,1726899053005,-500.96,0.00014289,2]
[338726326,1726899053015,-500.0,0.00014289,2]
[338726328,1726899053024,-464.76,0.00014289,2]
[338726330,1726899053033,-549.33,0.00014289,2]
[338726332,1726899053043,-303.77,0.00014289,2]
[338726334,1726899053052,-204.11,0.00014289,2]
[338726335,1726899053062,-400.5,0.00014289,2]
[338726337,1726899053071,-1000.0,0.00014289,2]
[338726339,1726899053080,-1000.0,0.00014289,2]
[338726341,1726899053089,-1000.0,0.00014289,2]
[338726343,1726899053098,-255.88,0.00014289,2]
[338726345,1726899053109,-500.0,0.00014289,2]
[338726348,1726899053120,-251.98,0.00014289,2]
[338726349,1726899053130,-356.03,0.00014289,2]
[338726351,1726899053139,-500.0,0.00014289,2]
[338726353,1726899053148,-263.62,0.00014289,2]
[338726355,1726899053157,-368.16,0.00014289,2]
[338726357,1726899053166,-490.15,0.00014289,2]
[338726359,1726899053176,-493.73,0.00014289,2]
[338726361,1726899053185,-2528.29,0.00014289,2]
[338726363,1726899053195,-2528.29,0.00014289,2]
[338726365,1726899053204,-2528.29,0.00014289,2]
[338726367,1726899053213,-96654.9894853,0.0001429,2]
[338726369,1726899053223,-94410.561929,0.0001429,2]
[338726371,1726899053232,-330436.966751,0.0001429,2]
[338726373,1726899053242,-1000.0,0.00014299,2]
[338726374,1726899053251,-1000.0,0.00014299,2]
[338726375,1726899053260,-1000.0,0.00014299,2]
[338726376,1726899053270,-1000.0,0.00014299,2]
[338726377,1726899053279,-1000.0,0.00014299,2]
[338726378,1726899053289,-1000.0,0.00014299,2]
[338726379,1726899053298,-1000.0,0.00014299,2]
[338726380,1726899053307,-1000.0,0.00014299,2]
[338726381,1726899053317,-1000.0,0.00014299,2]
[338726382,1726899053327,-1000.0,0.00014299,2]
[338726383,1726899053336,-1000.0,0.00014299,2]
[338726384,1726899053345,-1000.0,0.00014299,2]
[338726385,1726899053355,-1000.0,0.00014299,2]
[338726386,1726899053366,-450.32222325,0.00014299,2]
[338726387,1726899053376,-2528.29,0.00014299,2]
[338726390,1726899053387,-2528.29,0.00014299,2]
[338726392,1726899053398,-2528.29,0.00014299,2]
[338726394,1726899053407,-2528.29,0.00014299,2]
[338726396,1726899053417,-2528.29,0.00014299,2]
[338726398,1726899053428,-2528.29,0.00014299,2]
[338726400,1726899053439,-2528.29,0.00014299,2]
[338726402,1726899053450,-2528.29,0.00014299,2]
[338726405,1726899053463,-2528.29,0.00014299,2]
[338726407,1726899053472,-2528.29,0.00014299,2]
[338726409,1726899053481,-2528.29,0.00014299,2]
[338726411,1726899053490,-2528.29,0.00014299,2]
[338726413,1726899053500,-2528.29,0.00014299,2]
[338726415,1726899053509,-2528.29,0.00014299,2]
[338726417,1726899053518,-1247.02109966,0.000143,2]
[338726419,1726899053528,-180223.09632909,0.000143,2]
[338726588,1726899055119,-9096.64373114,0.000143,2]
[338726590,1726899055131,-8947.21879473,0.000143,2]
[338726592,1726899055142,-8144.61189265,0.000143,2]
[338726595,1726899055153,-799.17197197,0.000143,2]
[338726597,1726899055165,-9077.54866152,0.000143,2]
[338726599,1726899055176,-8943.84023489,0.000143,2]
[338726638,1726899055630,-35704.30466316,0.000143,2]
[338726645,1726899055703,-6240.97236759,0.000143,2]
[338726648,1726899055715,-852.5,0.000143,2]
[338726667,1726899055971,365.95,0.00010811,2]
[338726682,1726899087490,700.0,0.00010068,2]
[338726683,1726899089097,700.0,0.00011438,2]
[338726685,1726899118093,1300.0,8.972e-05,2]
[338726687,1726899119681,1300.0,0.00010342,2]
[338726688,1726899121271,1300.0,0.00011712,2]
[338726692,1726899149123,156.95,0.00010959,2]
[338726769,1726899611482,384.32,0.00010972,2]
[338726786,1726899680368,1050.0,0.00011,2]
[338726816,1726899830454,289.13,0.00010959,2]
[338726831,1726899919288,7605.69078227,9e-05,2]
[338726838,1726899953158,5906.44600313,6.94e-05,2]
[338726861,1726900074970,216.45764992,0.0001,2]
[338726869,1726900104206,-1000.0,0.000124,2]
[338726870,1726900106050,-165.24,0.00012515,2]
[338726871,1726900106071,-300.0,0.00012769,2]
[338726872,1726900106091,-534.76,0.0001277,2]
[338726874,1726900109879,7056.83313958,0.00010998,2]
[338726875,1726900109918,-1000.0,0.0001277,2]
[338726877,1726900112772,-1000.0,0.0001277,2]
[338726878,1726900117180,-990.0,0.0001277,2]
[338726907,1726900224958,-300.0,0.00012473,2]
[338726908,1726900224983,-14700.0,0.00012474,2]
[338726927,1726900232352,-250.0,0.00012122,2]
[338726928,1726900232365,-289.47059194,0.00012474,2]
[338726929,1726900232382,-1793.34940806,0.00012474,2]
[338726930,1726900232395,-537.23,0.00012484,2]
[338726931,1726900232407,-1711.28564201,0.00012704,2]
[338726932,1726900232420,-12227.18615891,0.0001277,2]
[338726933,1726900232432,-143823.77924515,0.0001278,2]
[338726934,1726900232444,-300.95,0.00012804,2]
[338726935,1726900232455,-700.0,0.00012808,2]
[338726936,1726900232467,-250.0,0.0001281,2]
[338726937,1726900232478,-1711.28564193,0.0001287,2]
[338726938,1726900232491,-6309.42137716,0.00012878,2]
[338726939,1726900232503,-500.0,0.00012887,2]
[338726940,1726900232515,-500.0,0.00012887,2]
[338726941,1726900232527,-500.0,0.00012887,2]
[338726942,1726900232538,-500.0,0.00012887,2]
[338726943,1726900232549,-500.0,0.00012887,2]
[338726944,1726900232561,-500.0,0.00012887,2]
[338726945,1726900232573,-500.0,0.00012887,2]
[338726947,1726900232585,-500.0,0.00012887,2]
[338726950,1726900232598,-500.0,0.00012887,2]
[338726951,1726900232609,-500.0,0.00012887,2]
[338726954,1726900232623,-500.0,0.00012887,2]
[338726955,1726900232635,-500.0,0.00012887,2]
[338726956,1726900232649,-500.0,0.00012888,2]
[338726957,1726900232661,-500.0,0.00012888,2]
[338726958,1726900232674,-500.0,0.00012888,2]
[338726959,1726900232687,-500.0,0.00012888,2]
[338726960,1726900232698,-500.0,0.00012888,2]
[338726961,1726900232710,-500.0,0.00012888,2]
[338726962,1726900232721,-500.0,0.00012888,2]
[338726963,1726900232734,-511.05,0.00012888,2]
[338726964,1726900232745,-500.0,0.00012888,2]
[338726965,1726900232758,-500.0,0.00012888,2]
[338726966,1726900232770,-500.0,0.00012888,2]
[338726967,1726900232782,-583.36,0.00012888,2]
[338726968,1726900232794,-500.0,0.00012888,2]
[338726969,1726900232806,-500.0,0.00012888,2]
[338726970,1726900232819,-637.47,0.00012888,2]
[338726971,1726900232831,-500.0,0.00012888,2]
[338726972,1726900232843,-612.93,0.00012888,2]
[338726973,1726900232857,-500.0,0.00012888,2]
[338726974,1726900232869,-418.73325761,0.00012888,2]
[338726975,1726900232881,-500.0,0.00012888,2]
[338726976,1726900232897,-500.0,0.00012888,2]
[338726977,1726900232909,-500.0,0.00012888,2]
[338726978,1726900232921,-500.0,0.00012888,2]
[338726979,1726900232934,-500.0,0.00012888,2]
[338726980,1726900232947,-500.0,0.00012888,2]
[338726981,1726900232963,-500.0,0.00012888,2]
[338726982,1726900232976,-500.0,0.00012888,2]
[338726983,1726900232988,-606.78,0.00012888,2]
[338726984,1726900233000,-500.0,0.00012888,2]
[338726985,1726900233011,-500.0,0.00012888,2]
[338726986,1726900233022,-500.0,0.00012888,2]
[338726987,1726900233033,-500.0,0.00012888,2]
[338726988,1726900233046,-500.0,0.00012888,2]
[338726989,1726900233059,-603.23,0.00012888,2]
[338726990,1726900233069,-500.0,0.00012888,2]
[338726991,1726900233081,-500.0,0.00012888,2]
[338726992,1726900233092,-505.53,0.00012888,2]
[338726993,1726900233104,-500.0,0.00012888,2]
[338726994,1726900233115,-500.0,0.00012888,2]
[338726995,1726900233126,-500.0,0.00012888,2]
[338726996,1726900233138,-500.0,0.00012888,2]
[338726997,1726900233150,-500.0,0.00012888,2]
[338726998,1726900233162,-500.0,0.00012888,2]
[338726999,1726900233173,-500.0,0.00012888,2]
[338727000,1726900233185,-500.0,0.00012888,2]
[338727001,1726900233196,-500.0,0.00012888,2]
[338727002,1726900233207,-500.0,0.00012888,2]
[338727003,1726900233219,-614.78,0.00012888,2]
[338727004,1726900233230,-500.0,0.00012888,2]
[338727005,1726900233241,-500.0,0.00012888,2]
[338727006,1726900233252,-500.0,0.00012888,2]